Cogmind - Beta 17.1 @@@ ROGUE MODE // 2026.09.16 @ 01:17:28 Player: 4R-ZE3 Result: Self-destructed Performance ------------- Evolutions (2) 1000 Regions Visited (3) 600 Robots Destroyed (33) 165 Value Destroyed (937) 937 Prototype IDs (0) 0 Alien Tech Used (0) 0 Bonus (0) 0 TOTAL SCORE: 2702 Bonus ------- None Cogmind --------- Core Integrity 430/550 Matter 300/300 Energy 160/160 System Corruption 0% Temperature Cool (0) Movement Walking (190) Ox1 Location -8/Materials Parts ------- > --- POWER (1) -------- Light Nuclear Core > --- PROPULSION (4) --- Improved Aluminum Leg Improved Aluminum Leg Improved Aluminum Leg Improved Aluminum Leg > --- UTILITY (4) ------ Improved Heat Sink Improved Heat Sink High-capacity Storage Unit > --- WEAPON (2) ------- Subdweller Laser Subdweller Laser > --- INVENTORY (20) --- Aluminum Leg Aluminum Leg Improved Aluminum Leg Wheel Wheel Compact Wheel Huge Storage Unit Signal Interpreter Beam Rifle Beam Rifle Particle Gun Particle Gun Subdweller Laser Pulse Rifle Heavy Assault Rifle Heavy Assault Rifle Subdweller Machine Gun Light Cannon Grenade Launcher Grenade Launcher Peak State ------------ > --- POWER ------------ Light Nuclear Core > --- PROPULSION ------- Improved Aluminum Leg Improved Aluminum Leg Improved Aluminum Leg Improved Aluminum Leg > --- UTILITY ---------- Improved Heat Sink Improved Heat Sink High-capacity Storage Unit > --- WEAPON ----------- Subdweller Laser Subdweller Laser > --- INVENTORY -------- Aluminum Leg Aluminum Leg Improved Aluminum Leg Wheel Wheel Compact Wheel Huge Storage Unit Signal Interpreter Beam Rifle Particle Gun Particle Gun Subdweller Laser Heavy Assault Rifle Heavy Assault Rifle Heavy Assault Rifle Heavy Assault Rifle Subdweller Machine Gun Light Cannon Grenade Launcher Grenade Launcher [Rating: 25] Favorites ----------- Power Light Ion Engine Engine Light Ion Engine Power Core Light Nuclear Core Propulsion Light Treads Treads Light Treads Leg Improved Aluminum Leg Utility High-capacity Storage Unit Device Improved Heat Sink Storage High-capacity Storage Unit Protection Light Armor Plating Weapon Light Cannon Energy Gun Subdweller Laser Ballistic Gun Subdweller Machine Gun Ballistic Cannon Light Cannon Launcher Grenade Launcher Build | -11 -10 -10 -8 ------- Run | Yrd Mat Sub Mat Slots Evolved 4 | . . . 4 Power . | . . . . Propulsion 2 | . . . 2 Utility 2 | . . . 2 Weapon . | . . . . Parts Attached 25 | 6 6 4 9 Power 3 | 1 . 1 1 Engine 2 | 1 . 1 . Core 1 | . . . 1 Reactor . | . . . . Propulsion 7 | 2 1 . 4 Treads 3 | 2 1 . . Leg 4 | . . . 4 Wheel . | . . . . Hover . | . . . . Flight . | . . . . Utility 6 | 1 3 . 2 Device 2 | . . . 2 Storage 3 | 1 2 . . Processor . | . . . . Hackware . | . . . . Protection 1 | . 1 . . Artifact . | . . . . Weapon 9 | 2 2 3 2 Energy Gun 4 | 2 . . 2 Energy Cannon . | . . . . Ballistic Gun 2 | . . 2 . Ballistic Cannon 2 | . 2 . . Launcher 1 | . . 1 . Special Weapon . | . . . . Impact Weapon . | . . . . Slashing Weapon . | . . . . Piercing Weapon . | . . . . Special Melee Weapon . | . . . . Unidentified Prototypes . | . . . . Parts Lost 6 | . . 2 4 Power 2 | . . 1 1 Propulsion 2 | . . . 2 Utility 1 | . . 1 . Weapon 1 | . . . 1 Highest Loss Streak 4 | . . 1 4 To Critical Strikes . | . . . . Average Backups 16 | 2 13 19 19 Power . | . 1 . . Propulsion 5 | . 4 7 6 Utility 2 | . 1 3 2 Weapon 7 | . 6 9 11 Tool/Special . | . . . . Unused Backups 22 | . 2 1 19 Power . | . . . . Propulsion 7 | . 1 . 6 Utility 1 | . . . 1 Weapon 14 | . 1 1 12 Tool/Special . | . . . . Average Slot Usage (%) 93 | . 94 96 78 Engine 12 | . 14 13 1 Treads 25 | . 28 28 2 Leg 3 | . . . 29 Device 1 | . . . 12 Storage 13 | . 14 14 9 Protection 9 | . 8 11 . Energy Gun 3 | . 5 . 13 Ballistic Gun 8 | . . 16 4 Ballistic Cannon 14 | . 22 9 . Peak Build Rating 25 | 6 10 12 25 Average Rating 10 | 5 8 10 20 On Entrance 6 | . 6 10 11 Avg Prop Armor Cover (%) . | . . . . Naked Turns . | . . . . Heaviest Build 92 | 12 92 54 55 Greatest Support 52 | 40 40 40 52 Greatest Overweight (x) 2 | . 2 1 1 Average Overweight (x) . | . . 1 . Largest Inventory Capacity 25 | 8 25 20 20 Average Capacity 17 | 7 16 20 20 Most Carried 20 | 4 20 20 20 Average Carried 16 | 2 13 19 19 Final Capacity 20 | 8 20 20 20 Final Carried 20 | 4 20 20 20 Class Distribution -------------------- 100% | Mutant Dominant Class ---------------- Mutant | -10/Materials Mutant | -10/Subcaves Mutant | -8/Materials Resources | -11 -10 -10 -8 ----------- Run | Yrd Mat Sub Mat Matter Collected 896 | 224 291 285 96 Remotely . | . . . . Salvage Created 1048 | . 606 153 289 Parts 62 | . 33 12 17 Haulers Intercepted 1 | . 1 . . Recyclers Shooed . | . . . . Parts Field Recycled . | . . . . Retrieved Matter . | . . . . Parts Self-Destructed 2 | . . 2 . Prevented . | . . . . Parts Restored . | . . . . Kills | -11 -10 -10 -8 ------- Run | Yrd Mat Sub Mat Combat Hostiles Destroyed 28 | . 16 6 6 Guns 15 | . 6 3 6 Cannons 13 | . 10 3 . Classes Destroyed 10 | . 7 2 1 Worker 1 | . 1 . . Builder 1 | . 1 . . Tunneler 1 | . 1 . . Hauler 1 | . 1 . . Recycler 1 | . 1 . . Swarmer 7 | . 6 1 . Grunt 13 | . 10 . 3 Duelist 1 | . . . 1 Sentry 3 | . . 1 2 Subdweller 4 | . . 4 . Best Kill Streak 3 | . 3 2 3 Combat Bots Only 3 | . 3 2 3 Max Kills in Single Turn 1 | . 1 1 1 Gunslinging . | . . . . Exploded . | . . . . Melee . | . . . . Uniques/NPCs Destroyed . | . . . . Combat | -11 -10 -10 -8 -------- Run | Yrd Mat Sub Mat Hostile Shots Fired 116 | . 66 20 30 Missed 37 | . 24 6 7 Hits 79 | . 42 14 23 Melee 4 | . . . 4 Projectile 75 | . 42 14 19 AOE 1 | . . 1 . Critical Strikes 3 | . . 3 . Damage Taken 1154 | . 410 327 417 Core 178 | . 36 22 120 Absorbed by Shields . | . . . . Core Remaining (%) 88 | 100 . 76 . Volleys Fired 103 | . 56 30 17 Largest 2 | . 2 2 2 Hottest 120 | . 90 60 120 Shots Fired 203 | . 112 57 34 Gun 112 | . 50 28 34 Cannon 88 | . 62 26 . Launcher 3 | . . 3 . Special . | . . . . Kinetic 125 | . 62 54 9 Thermal 50 | . 25 . 25 Explosive 3 | . . 3 . Electromagnetic 25 | . 25 . . Robot Hit Streak 14 | . 11 10 14 Robot Miss Streak 5 | . 5 3 1 Penetration Max . | . . . . Secondary Targets 2 | . 1 . 1 Max Gunslinging Chain 1 | . 1 . 1 Shots Hit Robots 128 | . 67 33 28 Core Hits 45 | . 25 8 12 Critical Kills . | . . . . Critical Parts Destroyed 2 | . . 1 1 Critical Strikes 6 | . 4 1 1 Burn 1 | . 1 . . Destroy 2 | . . 1 1 Blast 2 | . 2 . . Corrupt 1 | . 1 . . Melee Attacks . | . . . . Impact . | . . . . Slashing . | . . . . Piercing . | . . . . Sneak Attacks . | . . . . Combat Hostiles . | . . . . Follow-up Attacks . | . . . . Damage Inflicted 2258 | . 1072 615 571 Guns 1394 | . 507 316 571 Cannons 864 | . 565 299 . Explosions . | . . . . Melee . | . . . . Ramming . | . . . . Kinetic 1352 | . 565 615 172 Thermal 660 | . 261 . 399 Explosive . | . . . . Electromagnetic 246 | . 246 . . Impact . | . . . . Slashing . | . . . . Piercing . | . . . . Highest Corruption . | . . . . Average Corruption . | . . . . Corruption Purged . | . . . . Corruption Blocked . | . . . . Overload Shots . | . . . . Overflow Damage . | . . . . Projectiles . | . . . . Explosions . | . . . . Melee . | . . . . Knockbacks 10 | . 8 2 . Impact . | . . . . Kinetic 10 | . 8 2 . Secondary . | . . . . Self-Inflicted Damage . | . . . . Shots . | . . . . Rammed . | . . . . Targets Rammed . | . . . . Kicked . | . . . . Crushed . | . . . . Highest Temperature 266 | . 266 . 51 Average Temperature 84 | . 90 . 27 Received Heat Transfer 357 | . 162 42 153 Siege Activations . | . . . . Martial Activations . | . . . . Shielding Activations . | . . . . Robots Disrupted . | . . . . Combat Hostiles . | . . . . Robots Corrupted . | . . . . Combat Hostiles . | . . . . Parts Fried 1 | . 1 . . Impact Corruptions . | . . . . Robots Melted . | . . . . Combat Hostiles . | . . . . Parts Melted 1 | . . . 1 Heat Transferred 1351 | . 851 . 500 Parts Sabotaged . | . . . . Parts Stolen . | . . . . Parts Stripped . | . . . . Power Chain Reactions . | . . . . Alert | -11 -10 -10 -8 ------- Run | Yrd Mat Sub Mat Maximum Alert Level 1 | . 1 . . Low Security (%) 99 | 100 99 . 100 Level 1 . | . . . . Level 2 . | . . . . Level 3 . | . . . . Level 4 . | . . . . Level 5 . | . . . . High Security . | . . . . Max Security . | . . . . Peak Influence 208 | . 208 . 85 Initial . | . . . . Average 78 | . 91 . 44 Influence Increases 721 | . 509 40 172 Destroy 0b10 Robot/C 480 | . 320 40 120 Destroy 0b10 Robot/NC 25 | . 25 . . Destroy Leader 102 | . 72 . 30 Successful Hack 6 | . . . 6 Select Force Hacks 60 | . 60 . . Disable Machine 15 | . 15 . . Destroy Structure 3 | . 2 . 1 Lose Combat Pursuer 30 | . 15 . 15 Influence Decreases 680 | . 464 85 131 Entered New Map 22 | . . 22 . Time Decay 657 | . 464 63 130 Lost Part 1 | . . . 1 Squads Dispatched 5 | . 4 . 1 Investigation 3 | . 2 . 1 Extermination . | . . . . Reinforcement 2 | . 2 . . Assault . | . . . . Garrison . | . . . . Intercept . | . . . . Searches Triggered . | . . . . Construction Impeded . | . . . . Haulers Reinforced . | . . . . Active Scanning Responses . | . . . . Cargo Convoy Interrupts . | . . . . Stealth | -11 -10 -10 -8 --------- Run | Yrd Mat Sub Mat Distress Signals 4 | . 4 . . Communications Jammed . | . . . . Distress Signals . | . . . . Times Spotted 45 | . 30 6 9 Peak Tracking Total 5 | . 5 2 4 Tactical Retreats 2 | . 1 . 1 Traps | -11 -10 -10 -8 ------- Run | Yrd Mat Sub Mat Traps Triggered . | . . . . Indirectly . | . . . . Trap Hack Attempts . | . . . . Triggered . | . . . . Disarmed . | . . . . Reprogrammed . | . . . . Reused . | . . . . Traps Extracted . | . . . . Installed . | . . . . Triggered . | . . . . Machines | -11 -10 -10 -8 ---------- Run | Yrd Mat Sub Mat Machines Disabled 1 | . 1 . . Max in Single Turn 1 | . 1 . . Machines Repaired . | . . . . Machines Dismantled . | . . . . Machines Sabotaged . | . . . . Overloaded Fab Kills . | . . . . Hacking | -11 -10 -10 -8 --------- Run | Yrd Mat Sub Mat Machines Accessed 6 | . 4 . 2 Terminals 4 | . 2 . 2 Fabricators . | . . . . Repair Stations . | . . . . Recycling Units 2 | . 2 . . Scanalyzers . | . . . . Garrison Access . | . . . . Total Hacks 13 | . 8 . 5 Successful 5 | . 3 . 2 Failed 8 | . 5 . 3 Catastrophic 2 | . 1 . 1 Database Lockouts . | . . . . Manual 10 | . 8 . 2 Terminals 11 | . 6 . 5 Fabricators . | . . . . Repair Stations . | . . . . Recycling Units 2 | . 2 . . Scanalyzers . | . . . . Garrison Access . | . . . . Terminal Hacks 1 | . . . 1 Branch Access Points 1 | . . . 1 Fabricator Hacks . | . . . . Repair Station Hacks . | . . . . Recycling Unit Hacks . | . . . . Scanalyzer . | . . . . Garrison Access Hacks . | . . . . Unauthorized Hacks 4 | . 3 . 1 Terminals 2 | . 1 . 1 Botnet 2 | . 1 . 1 Fabricators . | . . . . Repair Stations . | . . . . Recycling Units 2 | . 2 . . Tunnel 2 | . 2 . . Scanalyzers . | . . . . Garrison Access . | . . . . Data Cores Recovered . | . . . . Used . | . . . . Hacking Detections 4 | . 2 . 2 Full Trace Events 1 | . . . 1 Feedback Events . | . . . . Feedback Blocked . | . . . . Robot Schematics Acquired . | . . . . Robots Built . | . . . . Authchips . | . . . . Time . | . . . . Total Robot Build Rating . | . . . . Part Schematics Acquired . | . . . . Parts Built . | . . . . Authchips . | . . . . Time . | . . . . Total Part Build Rating . | . . . . Part Studies Acquired . | . . . . Parts Repaired . | . . . . Time . | . . . . Parts Recycled . | . . . . Recycled Matter . | . . . . Retrieved Matter . | . . . . Retrieved Components . | . . . . Parts Scanalyzed . | . . . . Part Schematics Acquired . | . . . . Parts Damaged . | . . . . Bothacking | -11 -10 -10 -8 ------------ Run | Yrd Mat Sub Mat Used RIF Installer . | . . . . Robots Hacked . | . . . . Non-combat . | . . . . Combat . | . . . . Robot Hacks Applied . | . . . . Relay Couplers Released . | . . . . Fabnet Peak Effective % . | . . . . Robots Rewired . | . . . . Allies Hacked . | . . . . Hacks Repelled . | . . . . Allies | -11 -10 -10 -8 -------- Run | Yrd Mat Sub Mat Total Allies . | . . . . Largest Group . | . . . . Highest-Rated Group . | . . . . Highest-Rated Ally . | . . . . Total Orders . | . . . . Ally Attacks . | . . . . Total Damage . | . . . . Kills . | . . . . Allies Corrupted . | . . . . Allies Melted . | . . . . Intel | -11 -10 -10 -8 ------- Run | Yrd Mat Sub Mat Active Infowar (turns) . | . . . . Robot Analysis Total . | . . . . Derelict Logs Recovered 1 | . . 1 . Drone Launches . | . . . . Drone Recoveries . | . . . . Exploration | -11 -10 -10 -8 ------------- Run | Yrd Mat Sub Mat Turns Passed 3032 | 79 1303 1346 304 Spaces Moved 1141 | 44 497 487 113 Core 3 | 3 . . . Treads 1038 | 41 497 487 13 Legs 100 | . . . 100 Wheels . | . . . . Hover . | . . . . Flight . | . . . . Fastest Speed 50 | 50 160 240 120 Average Speed 220 | 152 214 240 188 Slowest Speed 320 | 160 320 240 240 Overloaded Moves . | . . . . Propulsion Burnouts . | . . . . Robots Hopped . | . . . . Potential Cave-ins . | . . . . Cave-ins Triggered . | . . . . Exploration Rate (%) 32 | 3 82 32 11 Regions Visited 3 Branch Regions 1 Pre-discovered Areas 2 | . 2 . . Known Exits Taken . | . . . . Unknown Exits Taken 3 | 1 1 1 . Scrap Searched 3 | . . 3 . Spaces Dug . | . . . . Terrain Destroyed 24 | . . 23 1 Melee . | . . . . Projectile 1 | . . . 1 AOE 23 | . . 23 . Terrain Rammed . | . . . . Walls Destroyed . | . . . . Machines Disabled . | . . . . Actions | -11 -10 -10 -8 --------- Run | Yrd Mat Sub Mat Total 1453 | 53 623 608 169 Wait 138 | . 39 80 19 Move 1138 | 43 496 486 113 Hop . | . . . . Pick Up 32 | 4 16 3 9 Fast Attach 14 | 6 5 2 1 Attach 8 | . . 1 7 Detach 3 | . 3 . . Swap 5 | . 2 2 1 Drop 12 | . 6 4 2 Fire 103 | . 56 30 17 Melee . | . . . . Ram . | . . . . Kick . | . . . . Crush . | . . . . Escape Stasis . | . . . . Rewire . | . . . . Trap . | . . . . Miscellaneous . | . . . . Route ------- -11/Scrapyard -10/Materials (discovered 4 exits: [*Mat x2] / [*Min] / [*Sub]) -10/Subcaves -8/Materials History --------- Turn | Location | Event 12 | -11/Scrapyard | Discovered new exit (range 16) 80 | -11/Scrapyard | Entered Materials 309 | -10/Materials | Build established: Mutant 525 | -10/Materials | Discovered new exit (range 13) 890 | -10/Materials | Discovered new exit (range 4) 1148 | -10/Materials | Discovered new exit (range 14) 1368 | -10/Materials | Discovered new exit (range 5) 1383 | -10/Materials | Entered Subcaves 1384 | -10/Subcaves | Approached by a straggling Scientist 1883 | -10/Subcaves | Shifting Twisted Machinery released Sub. Laser 1903 | -10/Subcaves | Shifting Twisted Machinery released Sub. Laser 1963 | -10/Subcaves | Learned 4 Materials zone layouts 2495 | -10/Subcaves | Disturbed a concealed Subdweller 2689 | -10/Subcaves | Discovered new exit (range 7) 2729 | -10/Subcaves | Entered Materials 2729 | -8/Materials | Evolved 4 slots: Propulsion x2, Utility x2 2798 | -8/Materials | Lost 4 parts (1p2n1w) 3033 | -8/Materials | Self-destructed Last Messages --------------- 02940_ Lgt. Nuclear Core melted. 02940_ G-47 Trooper destroyed. 02947_ Dropped Hvy. Assault Rifle. 02948_ Acquired Beam Rifle. 02968_ Dropped Hvy. Assault Rifle. 02968_ Acquired Pulse Rifle. 02982_ K-01 Serf collects debris. 03003_ Connecting with Terminal... 03003_ Current location identified: Materials >>Trojan(Botnet) Trojan loaded successfully. Testing... Terminal linked with 0 systems. Awaiting botnet instructions. 03022_ Connecting with Terminal... >>Access(Branch) No branch access points found. 03022_ ALERT: Suspicious activity at Terminal M002. Dispatching Investigation squad. 03028_ K-01 Serf cleans the Neutrino Reactor. Map ----- +----------------------------------------------------+ | | | | | | | | | | | | | | | | | | | ?########################??########## | | ?# # #??# | | ?# # ??#""" """ | | ?# # """ """ #??#"R """"" | | ?# # """ """ #??#""" """"" | | ?# # """ """ #??# "" """"" | | ?# # #?## [=""" | | ?# #######+#######?# % [* | | ?######+####T### ###############+### | | ????# # + [%!%#?? | | ????# + T ######*=### | | ######## //! T # #????# | | # # //! #####+###????# | | # """ + /! / #### ##?????# | | # """ # | | # """ # [ | | # #####@## ###+####+####+## | | # """ ## ## # ???????# | | # """ ## """ ## # """ ?????????# | | # """ ## """ ## # """ ????????? | | # ## """ ## # """ ?????????# | | # """ ## ## # ?????????# | | # """ ## ## # ?????????# | | # """ ## !]a## ######?????????# | | # ## !] ## # ?????????# | | ######### !] ## ## ?????????# | | ????????# ## ## ?????????? | | ????????# ## ## ???????????? | | ????????# ## ## """???????????? | | ?????########### ## "T ???????????? | | ?????# """ ## ## """???????????? | | ?????# """"" ## ## ???????????? | | ?????# """"" # ###+#???????????? | | ?????# """"" # ???????????? | | ?????# """ + ???????????? | | ?????# # ???????????? | | ?????# # ###+#???????????? | | ?????# ## ## ???????????? | | ?????# ## ## """???????????? | | ?????########### ## """???????????? | | ??????????# #??# ## """???????????? | +----------------------------------------------------+ Best States ------------- Heat Dissipation 59 Energy Generation 14 Energy Capacity 160 Matter Stores 300 Matter Capacity 300 Sight Range 16 Terrain Scan Density 10 Armor Coverage 150 Evasion (%) 45 Recoil Reduction 2 Item Schematics ----------------- None Robot Schematics ------------------ None Fabricated ------------ Nothing Repaired ---------- Nothing Studied --------- None Alien Tech Used ----------------- None Achievements -------------- None Challenges ------------ None Game ------ Seed FieldthrustHelicalJets Manual? 0 Play Time 00:12:30 Cumulative 416.4 hours Start 2026.09.16 @ 01:06:54 End 2026.09.16 @ 01:17:28 Sessions 1 Manual Loads 0 Difficulty Rogue Special Mode None Game No. 362 Rogue 308 Adventurer 54 Explorer 0 Win Type - Total 25 Types 15/2/1/1/1/1/1/1/1/1 Lore% 83 Gallery% 71 Achievement% 72 Wizard Run 0 Options --------- Layout 1 ASCII 0 Keyboard 0 Movement Mouse Keybinds 1 Fullscreen 2 Font 32/Tamsyn Map View 50x35 Zoom Use 0% Tactical HUD 1 Map Filters NONE Filters NONE Steam 1 RUN: 112039b4-d9d8-4b67-adcb-ce22a39bd8c4